bitfinex/quotes_BTCUSD_20251012
["timestamp","ask_amount","ask_price","bid_price","bid_amount"]
[1760306814511,0.56544019,115520.0,115510.0,0.11431612]
[1760306814659,0.54919019,115520.0,115510.0,0.11431612]
[1760306814872,0.54919019,115520.0,115510.0,0.09115164]
[1760306815071,0.34,115520.0,115510.0,0.46872633]
[1760306815275,0.34,115520.0,115510.0,0.43769909]
[1760306815502,0.34,115520.0,115510.0,0.27990909]
[1760306815700,0.54928019,115520.0,115510.0,0.31085083]
[1760306815904,0.54928019,115520.0,115510.0,0.13770565]
[1760306816115,0.56513019,115520.0,115510.0,0.11427392]
[1760306816319,0.54928019,115520.0,115510.0,0.09106614]
[1760306816576,0.34,115520.0,115510.0,0.36547909]
[1760306817212,0.34,115520.0,115510.0,0.39105958]
[1760306817411,0.00034814,115530.0,115510.0,1.01063071]
[1760306817756,0.00034814,115530.0,115520.0,0.33963072]
[1760306817958,0.00034814,115530.0,115520.0,0.34725647]
[1760306818132,0.00034814,115530.0,115520.0,0.39591647]
[1760306818574,0.00034814,115530.0,115520.0,0.34944459]
[1760306819006,0.00034814,115530.0,115520.0,0.39593634]
[1760306819158,0.00034814,115530.0,115520.0,0.35471709]
[1760306819506,0.00034814,115530.0,115520.0,0.39593634]
[1760306819968,0.00034814,115530.0,115520.0,0.86378805]
[1760306820173,0.00034814,115530.0,115520.0,0.8172963]
[1760306820446,0.00256627,115530.0,115520.0,0.82537157]
[1760306820645,0.00256627,115530.0,115520.0,0.35751986]
[1760306820846,0.00256627,115530.0,115520.0,0.27508368]
[1760306821079,0.51568147,115530.0,115520.0,0.06504349]
[1760306821288,0.55174147,115530.0,115520.0,0.23817368]
[1760306821504,0.51568147,115530.0,115520.0,0.27508368]
[1760306821722,0.34256627,115530.0,115520.0,0.32374368]
[1760306822295,0.34256627,115530.0,115520.0,0.42698658]
[1760306822508,0.00256627,115530.0,115520.0,0.39596368]
[1760306823252,0.17568147,115530.0,115520.0,0.20415177]
[1760306823659,0.00256627,115530.0,115520.0,0.33624086]
[1760306823861,0.00256627,115530.0,115520.0,0.37743928]
[1760306824141,0.17568147,115530.0,115520.0,0.28758475]
[1760306824351,0.00256627,115530.0,115520.0,0.36194566]
[1760306824489,0.17568147,115530.0,115520.0,0.37743928]
[1760306824702,0.17568147,115530.0,115520.0,0.08342909]
[1760306824892,0.17568147,115530.0,115520.0,0.20415691]
[1760306824893,0.21174147,115530.0,115520.0,0.20415691]
[1760306825490,0.21174147,115530.0,115520.0,0.06793672]
[1760306825491,0.17568147,115530.0,115520.0,0.06793672]
[1760306825749,0.17568147,115530.0,115520.0,0.24106691]
[1760306825952,0.30326147,115530.0,115520.0,0.07754581]
[1760306826208,0.22739147,115530.0,115520.0,0.30092672]
[1760306826918,0.17568147,115530.0,115520.0,0.63184691]
[1760306827121,0.00256627,115530.0,115520.0,0.63184691]
[1760306827614,0.17568147,115530.0,115520.0,0.64733928]
[1760306827757,0.00256627,115530.0,115520.0,0.64733928]
[1760306827956,0.00256627,115530.0,115520.0,0.37743928]
[1760306828161,0.2090443,115540.0,115520.0,0.41173731]
[1760306828557,0.55750057,115550.0,115540.0,0.17310022]
[1760306828876,0.64902057,115550.0,115540.0,0.06520909]
[1760306829670,0.64902057,115550.0,115540.0,0.05992081]
[1760306830137,1.61968557,115550.0,115540.0,0.09098757]
[1760306830296,1.61968557,115550.0,115540.0,0.0444057]
[1760306830730,1.62420984,115550.0,115540.0,0.03664745]
[1760306831353,1.62420984,115550.0,115540.0,0.01333894]
[1760306831718,1.62420984,115550.0,115520.0,0.03106676]
[1760306831719,1.48376522,115540.0,115520.0,0.03106676]
[1760306831940,1.48376522,115540.0,115510.0,0.11924863]
[1760306831941,1.48379519,115520.0,115510.0,0.11924863]
[1760306832141,1.56979519,115520.0,115510.0,0.0728149]
[1760306832347,1.61180519,115520.0,115510.0,0.0728149]
[1760306834123,1.61180519,115520.0,115510.0,0.0742882]
[1760306834344,1.61180519,115520.0,115510.0,0.04322144]
[1760306834345,1.63395244,115520.0,115510.0,0.04322144]
[1760306835208,1.61180519,115520.0,115510.0,0.04322144]
[1760306836412,0.64114019,115520.0,115510.0,0.04322144]
[1760306836854,1.61180519,115520.0,115510.0,0.04322144]
[1760306837311,0.64114019,115520.0,115510.0,0.04322144]
[1760306837449,1.61180519,115520.0,115510.0,0.04322144]
[1760306838019,1.61180519,115520.0,115510.0,0.12092251]
[1760306838335,1.61180519,115520.0,115510.0,0.10528148]
[1760306838537,0.03615,115520.0,115510.0,0.25397662]
[1760306838741,0.20911854,115530.0,115510.0,0.45525769]
[1760306838742,0.036,115530.0,115510.0,0.45525769]
[1760306838941,0.2821152,115530.0,115520.0,0.07770107]
[1760306839159,0.5974652,115530.0,115520.0,0.25083126]
[1760306839619,0.2574652,115530.0,115520.0,0.25083126]
[1760306840683,0.5974652,115530.0,115520.0,0.25083126]
[1760306841020,0.5974652,115530.0,115520.0,0.23504803]
[1760306841458,0.20958837,115540.0,115520.0,0.8021719]
[1760306841638,0.30281534,115530.0,115520.0,0.06190339]
[1760306841846,0.17313019,115520.0,115510.0,0.29406769]
[1760306842066,0.22887019,115520.0,115510.0,0.29406769]
[1760306842272,0.22887019,115520.0,115510.0,0.27826967]
[1760306842686,0.20713019,115520.0,115510.0,0.31587967]
[1760306843124,0.036,115530.0,115520.0,0.17313019]
[1760306843269,0.2091152,115530.0,115520.0,0.27260038]
[1760306843667,0.2303352,115530.0,115520.0,0.27260038]
[1760306845048,0.2091152,115530.0,115520.0,0.27260038]
[1760306845261,0.036,115530.0,115520.0,0.27260038]
[1760306845478,0.54959133,115540.0,115530.0,0.1731152]
[1760306845682,0.03648694,115540.0,115530.0,0.27258539]
[1760306845888,0.54958716,115540.0,115530.0,0.27258539]
[1760306846089,0.57080716,115540.0,115530.0,0.09947019]
[1760306846298,0.1731152,115530.0,115520.0,0.27260038]
[1760306846547,0.03648694,115540.0,115530.0,0.2229052]
[1760306846751,0.03648694,115540.0,115530.0,0.80215691]
[1760306846752,0.00048694,115540.0,115530.0,0.80215691]
[1760306846955,0.00048694,115540.0,115530.0,0.3343052]
[1760306847131,0.00048694,115540.0,115530.0,0.41200627]
[1760306847498,0.34,115530.0,115520.0,0.06168804]
[1760306847705,0.34,115530.0,115510.0,0.21636662]
[1760306847706,0.51313019,115520.0,115510.0,0.21636662]
[1760306847919,0.66747019,115520.0,115510.0,0.04322144]
[1760306848134,1.63813519,115520.0,115510.0,0.04322144]
[1760306849062,1.63813519,115520.0,115510.0,1e-08]
[1760306849274,1.66207977,115520.0,115510.0,1e-08]
[1760306849478,1.68422702,115520.0,115510.0,1e-08]
[1760306849893,1.63813519,115520.0,115510.0,1e-08]
[1760306851862,1.68422702,115520.0,115510.0,1e-08]
[1760306852268,1.68707976,115520.0,115510.0,1e-08]
[1760306852471,1.70922701,115520.0,115510.0,1e-08]
[1760306853698,1.68707976,115520.0,115510.0,1e-08]
[1760306854193,1.63813519,115520.0,115510.0,1e-08]
[1760306855937,1.72685453,115520.0,115510.0,1e-08]
[1760306856150,1.63813519,115520.0,115510.0,1e-08]
[1760306861937,0.03438,115520.0,115510.0,0.04979001]
[1760306862103,0.03610694,115540.0,115530.0,0.1731152]
[1760306862321,0.00048694,115540.0,115530.0,0.2605152]
[1760306862528,0.00048694,115540.0,115530.0,0.3343052]
[1760306862733,0.00048694,115540.0,115530.0,1.02411209]
[1760306862936,0.00048694,115540.0,115530.0,1.07045142]
[1760306863353,0.00048694,115540.0,115530.0,1.12908574]
[1760306863565,0.00048694,115540.0,115530.0,0.48552276]
[1760306863777,0.00040107,115560.0,115550.0,0.17308524]
[1760306863980,0.00040107,115560.0,115550.0,1.07761377]
[1760306864219,0.00040107,115560.0,115550.0,0.50811115]
[1760306864981,0.00054912,115560.0,115550.0,0.50811115]
[1760306866811,0.00054912,115560.0,115550.0,0.44948151]
[1760306867015,0.00054912,115560.0,115550.0,0.4494801]
[1760306867221,0.00054912,115560.0,115550.0,0.41858163]
[1760306867431,0.34054912,115560.0,115550.0,0.18737661]
[1760306867634,0.00054912,115560.0,115550.0,1.13681667]
[1760306867854,0.9402,115590.0,115580.0,0.17304031]
[1760306868041,0.6006935,115590.0,115580.0,0.43626005]
[1760306868252,0.6006935,115590.0,115580.0,1.17243997]
[1760306868443,0.6006935,115590.0,115580.0,1.14153268]
[1760306868642,0.0002,115620.0,115610.0,0.17299541]
[1760306868855,0.00034802,115620.0,115610.0,0.17299541]
[1760306869277,0.34034802,115620.0,115610.0,0.17299541]
[1760306869496,0.34034802,115620.0,115610.0,0.19151153]
[1760306869806,0.0018213,115620.0,115610.0,0.19151153]
[1760306870168,0.0018213,115620.0,115610.0,0.2223921]
[1760306870399,0.0018213,115620.0,115610.0,0.97083331]
[1760306870792,0.0002,115660.0,115650.0,0.17293558]
[1760306870994,0.00014793,115660.0,115650.0,0.20889362]
[1760306871346,0.00014793,115660.0,115650.0,0.1928517]
[1760306871550,0.00014793,115660.0,115650.0,0.17433558]
[1760306871946,0.00014793,115660.0,115650.0,0.2638651]
[1760306872173,0.00014793,115660.0,115650.0,0.32513919]
[1760306872382,0.00014793,115660.0,115650.0,0.2638651]
[1760306873116,0.00014793,115660.0,115650.0,1.04777677]
[1760306874111,0.00014793,115660.0,115650.0,1.10880024]
[1760306874626,0.00014793,115660.0,115650.0,1.04777677]
[1760306874830,0.00014793,115660.0,115650.0,1.10877701]
[1760306875015,0.00014793,115660.0,115650.0,1.04777677]
[1760306875221,0.00027,115680.0,115670.0,0.17290567]
[1760306875462,0.00027,115680.0,115670.0,0.30811318]
[1760306875667,0.00027,115680.0,115670.0,0.30951318]
[1760306875877,0.00027,115680.0,115670.0,0.99342486]
[1760306876084,0.00884229,115710.0,115700.0,0.17286084]
[1760306876233,0.00933561,115710.0,115700.0,0.26379036]
[1760306876437,0.00069332,115710.0,115700.0,0.26379036]
[1760306876862,0.00069332,115710.0,115700.0,0.28879035]
[1760306878543,0.00069332,115710.0,115700.0,0.38879034]
[1760306878684,0.00069332,115710.0,115700.0,0.41918743]
[1760306878872,0.00069332,115710.0,115700.0,0.38879034]
[1760306879536,0.00069332,115710.0,115700.0,0.28879035]
[1760306879743,0.00069332,115710.0,115700.0,0.38879034]
[1760306879914,1e-08,115710.0,115700.0,0.41918743]
[1760306880317,1e-08,115710.0,115700.0,0.38879034]
[1760306880536,1e-08,115710.0,115700.0,0.28879035]
[1760306880953,1e-08,115710.0,115700.0,0.38879034]
[1760306881147,1e-08,115710.0,115700.0,0.26379036]
[1760306881677,1e-08,115710.0,115700.0,0.28879035]
[1760306882390,1e-08,115710.0,115700.0,0.26379036]
[1760306888578,0.51284591,115710.0,115700.0,0.17372084]
[1760306888825,0.59980591,115710.0,115690.0,0.1728631]
[1760306889044,0.54954591,115710.0,115700.0,0.17286084]
[1760306889502,0.54954591,115710.0,115690.0,0.26239262]
[1760306889738,0.54954591,115710.0,115700.0,0.17383084]
[1760306889957,0.54954591,115710.0,115700.0,0.17286084]
[1760306890186,0.59980591,115710.0,115700.0,0.17286084]
[1760306890404,0.51287578,115690.0,115680.0,0.06083709]
[1760306890656,0.54957578,115690.0,115680.0,0.20333073]
[1760306890878,0.59983578,115690.0,115680.0,0.03044]
[1760306891082,0.59983578,115690.0,115680.0,0.20333073]
[1760306891283,0.67467578,115690.0,115680.0,0.03044]
[1760306891484,0.59983578,115690.0,115680.0,0.06083709]
[1760306891708,0.67467578,115690.0,115680.0,0.03044]
[1760306891933,0.59983578,115690.0,115680.0,0.05325553]
[1760306892139,0.54957578,115690.0,115680.0,0.05325553]
[1760306892358,0.59983578,115690.0,115680.0,0.08365262]
[1760306892778,1.64534078,115690.0,115680.0,0.05325553]
[1760306892985,1.64534078,115690.0,115680.0,0.03044]
[1760306893138,1.64534078,115690.0,115680.0,0.05325553]
[1760306893338,1.64534078,115690.0,115680.0,0.02281553]
[1760306893727,1.64534078,115690.0,115680.0,0.05296743]
[1760306893963,1.64534078,115690.0,115680.0,0.0301519]
[1760306894166,1.64534078,115690.0,115680.0,0.05296743]
[1760306894375,1.64534078,115690.0,115680.0,0.02281553]
[1760306894604,1.64534078,115690.0,115680.0,0.05296743]
[1760306894959,0.67467578,115690.0,115680.0,0.08336452]
[1760306895169,0.67467578,115690.0,115680.0,0.06054899]
[1760306895794,0.67467578,115690.0,115680.0,0.10614952]
[1760306895992,1.64534078,115690.0,115680.0,0.02292762]
[1760306896631,1.64534078,115690.0,115680.0,0.05307952]
[1760306897230,1.64534078,115690.0,115680.0,0.03813932]
[1760306897838,1.64534078,115690.0,115680.0,0.06114467]
[1760306898010,1.64534078,115690.0,115680.0,0.03813932]
[1760306898215,1.64534078,115690.0,115680.0,0.08373985]
[1760306899176,1.64534078,115690.0,115680.0,0.07575243]
[1760306899364,1.64834078,115690.0,115680.0,0.07575243]
[1760306900129,1.64834078,115690.0,115680.0,0.09114751]
[1760306900512,1.64834078,115690.0,115680.0,0.0301519]
[1760306900847,1.65234078,115690.0,115680.0,0.0301519]
[1760306901174,1.48355573,115680.0,115670.0,0.0301519]
[1760306901374,1.59554573,115680.0,115670.0,0.0301519]
[1760306901583,1.59554573,115680.0,115670.0,0.07641547]
[1760306901584,1.64423573,115680.0,115670.0,0.07641547]
[1760306901728,0.67357073,115680.0,115670.0,0.0301519]
[1760306902384,0.68057073,115680.0,115670.0,0.09114751]
[1760306903448,1.65123573,115680.0,115670.0,0.0301519]
[1760306904219,0.68057073,115680.0,115670.0,0.03818351]
[1760306904422,0.68057073,115680.0,115670.0,0.0301519]
[1760306906091,0.68057073,115680.0,115670.0,0.09114751]
[1760306906436,1.65123573,115680.0,115670.0,0.0301519]
[1760306906641,1.65123573,115680.0,115670.0,0.03818188]
[1760306907220,0.68057073,115680.0,115670.0,0.0301519]
[1760306907411,1.65123573,115680.0,115670.0,0.0301519]
[1760306908028,1.478345,115680.0,115670.0,0.0301519]
[1760306908267,1.65123573,115680.0,115670.0,0.09114751]
[1760306909255,1.65123573,115680.0,115670.0,0.26405318]
[1760306909912,1.65123573,115680.0,115670.0,0.09114751]
[1760306910281,0.68057073,115680.0,115670.0,0.09114751]
[1760306910481,0.51989073,115680.0,115670.0,0.34537318]
[1760306910872,0.347,115680.0,115670.0,0.34537318]
[1760306911299,0.38522,115680.0,115670.0,0.34537318]
[1760306911500,0.60680073,115680.0,115670.0,0.34537318]
[1760306911719,0.60680073,115680.0,115670.0,0.29567318]
[1760306912139,0.60680073,115680.0,115670.0,0.31164143]
[1760306912573,0.43391,115680.0,115670.0,0.31164143]
[1760306912780,0.60680073,115680.0,115670.0,0.31164143]
[1760306913215,0.68057073,115680.0,115670.0,0.10711576]
[1760306913426,0.51290567,115670.0,115660.0,0.18573595]
[1760306913633,0.59981567,115670.0,115660.0,0.07696386]
[1760306913856,0.67358567,115670.0,115660.0,0.10711576]
[1760306914071,0.67358567,115670.0,115660.0,0.07696386]
[1760306914072,0.42691,115670.0,115660.0,0.07696386]
[1760306914290,0.59981567,115670.0,115660.0,0.24988448]
[1760306914538,0.67658567,115670.0,115660.0,0.10760907]
[1760306914717,0.67658567,115670.0,115660.0,0.07745717]
[1760306914965,1.64925067,115670.0,115660.0,0.07745717]
[1760306915168,1.64925067,115670.0,115660.0,0.00049331]
[1760306915416,1.64925067,115670.0,115660.0,0.10760907]
[1760306915877,1.64925067,115670.0,115660.0,0.03064521]
[1760306916286,1.64925067,115670.0,115660.0,0.00049331]
[1760306916499,1.64925067,115670.0,115660.0,0.03064521]
[1760306917296,1.64925067,115670.0,115660.0,0.00049331]
[1760306917508,1.64925067,115670.0,115660.0,0.20356583]
[1760306918208,0.67858567,115670.0,115660.0,0.20356583]
[1760306918652,0.67858567,115670.0,115660.0,0.28052969]
[1760306919228,0.67858567,115670.0,115660.0,0.10760907]
[1760306919808,0.70946242,115670.0,115660.0,0.10760907]
[1760306920020,0.67858567,115670.0,115660.0,0.10760907]
[1760306920220,1.64925067,115670.0,115660.0,0.03064521]
[1760306920874,1.64425067,115670.0,115660.0,0.03064521]
[1760306921084,1.64725067,115670.0,115660.0,0.03064521]
[1760306921264,1.65125067,115670.0,115660.0,0.00049331]
[1760306922081,0.68058567,115670.0,115660.0,0.20356583]
[1760306922283,0.60681567,115670.0,115660.0,0.03064521]
[1760306922592,0.69160915,115670.0,115660.0,0.00049331]
[1760306923477,1.66679329,115670.0,115660.0,0.00049331]
[1760306923672,0.51293558,115650.0,115640.0,0.11899726]
[1760306923875,1.52182058,115650.0,115640.0,0.11914519]
[1760306924078,0.41284078,115650.0,115640.0,0.21469846]
[1760306924279,0.58577636,115650.0,115640.0,0.29209572]
[1760306924476,0.58577636,115650.0,115640.0,0.32224762]
[1760306924677,0.65954636,115650.0,115640.0,0.32224762]
[1760306925442,1.63021136,115650.0,115640.0,0.04174793]
[1760306926701,1.63521136,115650.0,115640.0,0.04174793]
[1760306926937,0.66454636,115650.0,115640.0,0.04174793]
[1760306929440,1.7227814,115650.0,115640.0,0.04174793]
[1760306929670,0.51299541,115610.0,115600.0,0.20847916]
[1760306929959,0.67006541,115610.0,115600.0,0.17726426]
[1760306930133,0.67006541,115610.0,115600.0,0.10799719]
[1760306930321,0.67006541,115610.0,115600.0,0.03058802]
[1760306930322,1.64073041,115610.0,115600.0,0.03058802]
[1760306930909,1.64273041,115610.0,115600.0,0.00014802]
[1760306931291,1.66667499,115610.0,115600.0,0.00014802]
[1760306931571,1.66467499,115610.0,115600.0,0.00014802]
[1760306932007,1.66667499,115610.0,115600.0,0.00014802]
[1760306932643,0.69600999,115610.0,115600.0,0.00014802]
[1760306932800,1.68285812,115610.0,115600.0,0.00014802]
[1760306933428,1.64273041,115610.0,115600.0,0.00014802]
[1760306933614,1.64073041,115610.0,115600.0,0.00014802]
[1760306934012,1.64273041,115610.0,115600.0,0.00014802]
[1760306934200,1.64073041,115610.0,115600.0,0.00014802]
[1760306934649,1.64273041,115610.0,115600.0,0.00014802]
[1760306934785,1.64073041,115610.0,115600.0,0.00014802]
[1760306935188,1.64273041,115610.0,115600.0,0.00014802]
[1760306938359,1.64073041,115610.0,115600.0,0.00014802]
[1760306938723,1.64273041,115610.0,115600.0,0.00014802]
[1760306941706,0.33206541,115610.0,115600.0,0.00014802]
[1760306942085,0.67206541,115610.0,115600.0,0.00014802]
[1760306942431,0.67006541,115610.0,115600.0,0.00014802]
[1760306942981,0.67006541,115610.0,115560.0,0.33037227]
[1760306942982,0.51304031,115580.0,115560.0,0.10324963]
[1760306943347,1.64079029,115570.0,115560.0,0.1035863]
[1760306943568,1.64079029,115570.0,115560.0,0.0420535]
[1760306943982,1.6878743,115570.0,115560.0,0.0420535]
[1760306944187,1.6878743,115570.0,115560.0,1e-08]
[1760306944386,0.34,115540.0,115530.0,0.13165168]
[1760306944613,0.55017022,115540.0,115530.0,0.13165168]
[1760306944830,0.67017022,115540.0,115530.0,0.06253266]
[1760306945544,0.67017022,115540.0,115530.0,0.06453266]
[1760306945958,0.03707,115550.0,115530.0,0.28341786]
[1760306946167,0.37707,115550.0,115540.0,0.0615328]
[1760306946554,0.03707,115550.0,115540.0,0.25102212]
[1760306946681,0.21014026,115560.0,115550.0,0.17308524]
[1760306946880,0.25693026,115560.0,115550.0,0.23461804]
[1760306947080,0.03707,115560.0,115550.0,0.34239994]
[1760306947290,0.08386,115560.0,115550.0,0.29462994]
[1760306947494,0.42386,115560.0,115550.0,0.29462994]
[1760306947893,0.42386,115560.0,115550.0,0.23309714]
[1760306947894,0.08386,115560.0,115550.0,0.23309714]
[1760306948248,0.25693026,115560.0,115550.0,0.23309714]
[1760306948452,0.33014026,115560.0,115550.0,0.25046554]
[1760306948659,0.67014026,115560.0,115550.0,0.17308524]
[1760306948857,0.49707,115560.0,115550.0,0.17408524]
[1760306949477,0.67014026,115560.0,115550.0,0.17408524]
[1760306949820,0.49707,115560.0,115550.0,0.17408524]
[1760306950022,0.49707,115560.0,115550.0,0.23560683]
[1760306950421,0.49707,115560.0,115550.0,0.17408524]
[1760306950626,0.42386,115560.0,115550.0,0.17408524]
[1760306950830,0.67014026,115560.0,115550.0,0.17408524]
[1760306951064,0.49707,115560.0,115550.0,0.17408524]
[1760306951512,0.34,115560.0,115550.0,0.25200714]
[1760306951721,0.03707,115590.0,115580.0,0.17304031]
[1760306951925,0.03707,115590.0,115580.0,0.2644199]
[1760306952135,0.21006583,115610.0,115600.0,0.17301038]
[1760306952383,0.29199412,115620.0,115610.0,0.20314731]
[1760306952384,0.03707,115620.0,115610.0,0.20314731]
[1760306952590,0.970665,115620.0,115610.0,0.31242949]
[1760306952800,0.34,115620.0,115610.0,0.31242949]
[1760306952968,0.51347365,115620.0,115610.0,0.26465949]
[1760306953178,0.55054365,115620.0,115610.0,0.26465949]
[1760306953380,0.55054365,115620.0,115610.0,0.20314731]
[1760306953629,0.0375632,115620.0,115610.0,0.2800468]
[1760306954252,0.0375632,115620.0,115610.0,0.3278168]
[1760306954671,0.0004932,115620.0,115610.0,0.3278168]
[1760306955125,0.21054365,115620.0,115610.0,0.2800468]
[1760306955294,0.33054365,115620.0,115610.0,0.001]
[1760306955468,0.67054365,115620.0,115610.0,0.06260662]
[1760306955872,0.3775632,115620.0,115610.0,0.20414731]
[1760306956102,0.3404932,115620.0,115610.0,0.3246068]
[1760306956300,0.3775632,115620.0,115610.0,0.2810468]
[1760306956832,0.59733365,115620.0,115610.0,0.2810468]
[1760306956977,0.4243532,115620.0,115610.0,0.2810468]
[1760306957186,0.3775632,115620.0,115610.0,0.2810468]
[1760306957372,0.59733365,115620.0,115610.0,0.2810468]
[1760306957580,0.4243532,115620.0,115610.0,0.2800468]
[1760306957998,0.4243532,115620.0,115610.0,0.20414731]
[1760306958428,0.59733365,115620.0,115610.0,0.20414731]
[1760306958670,0.67056365,115620.0,115610.0,0.20414731]
[1760306958869,0.59733365,115620.0,115610.0,0.20414731]
[1760306959031,1.64122865,115620.0,115610.0,0.0033934]
[1760306959381,1.48367538,115600.0,115590.0,0.10829896]
[1760306959701,1.62664038,115600.0,115590.0,0.00804062]
[1760306960236,0.17302534,115590.0,115580.0,0.04156]
[1760306960450,1.62665534,115590.0,115580.0,0.04156]
[1760306960851,0.66906534,115590.0,115580.0,0.04156]
[1760306961055,1.62565534,115590.0,115580.0,0.04156]
[1760306961272,0.66906534,115590.0,115580.0,0.04156]
[1760306961465,1.65008025,115590.0,115580.0,0.04156]
[1760306961659,1.62665534,115590.0,115580.0,0.04156]
[1760306962391,1.63473874,115590.0,115580.0,0.04156]
[1760306962789,1.63373874,115590.0,115580.0,0.04156]
[1760306963141,1.63473874,115590.0,115580.0,0.10336765]
[1760306963353,1.63373874,115590.0,115580.0,0.10336765]
[1760306963563,1.65716365,115590.0,115580.0,0.04156]
[1760306963736,1.65816365,115590.0,115580.0,0.04156]
[1760306963937,1.63473874,115590.0,115580.0,0.04156]
[1760306964147,0.67814874,115590.0,115580.0,0.04156]
[1760306964349,1.63473874,115590.0,115580.0,1e-08]
[1760306964894,0.51308524,115550.0,115540.0,0.13107472]
[1760306965112,0.67012524,115550.0,115540.0,0.13107472]
[1760306965333,0.67012524,115550.0,115540.0,0.06180765]
[1760306965744,0.49704,115550.0,115540.0,0.23490787]
[1760306965901,0.67012524,115550.0,115540.0,0.23490787]
[1760306966103,0.67012524,115550.0,115540.0,0.00014805]
[1760306966329,0.67012524,115550.0,115540.0,0.00214805]
[1760306966955,0.67012524,115550.0,115540.0,0.17524827]
[1760306967385,0.67012524,115550.0,115540.0,0.25312017]
[1760306967386,0.37671,115550.0,115540.0,0.25312017]
[1760306967584,0.03671,115580.0,115570.0,0.17305529]
[1760306967795,0.33008031,115580.0,115560.0,0.26492648]
[1760306968150,0.67008031,115580.0,115570.0,0.06170633]
[1760306968290,1.62667031,115580.0,115570.0,0.06170633]
[1760306968694,1.62667031,115580.0,115570.0,0.06270633]
[1760306968892,0.33008031,115580.0,115570.0,0.06270633]
[1760306969567,0.67008031,115580.0,115570.0,0.06270633]
[1760306969767,0.67008031,115580.0,115570.0,0.23576162]
[1760306969768,0.42381,115580.0,115570.0,0.23576162]
[1760306970017,0.39868229,115570.0,115560.0,0.10837689]
[1760306970239,0.51307026,115560.0,115550.0,0.17000814]
[1760306970444,0.51308524,115550.0,115540.0,0.07728494]
[1760306970637,0.67012524,115550.0,115540.0,0.07728494]
[1760306971099,0.66912524,115550.0,115540.0,0.07728494]
[1760306971328,0.66912524,115550.0,115540.0,0.00014805]
[1760306971547,0.66912524,115550.0,115540.0,0.06186609]
[1760306971736,0.66912524,115550.0,115540.0,0.00014805]
[1760306971938,0.66912524,115550.0,115540.0,0.00214805]
[1760306972132,0.66912524,115550.0,115540.0,0.06386444]
[1760306972898,0.66912524,115550.0,115510.0,0.42145914]
[1760306972899,0.17313019,115520.0,115510.0,0.10829896]
[1760306973106,1.62973518,115510.0,115500.0,0.04156]
[1760306973306,1.62040518,115510.0,115500.0,0.04156]
[1760306973725,1.62040518,115510.0,115500.0,0.04322381]
[1760306973898,0.66381518,115510.0,115500.0,0.04322381]
[1760306974041,0.66281518,115510.0,115500.0,0.04322381]
[1760306974932,0.66281518,115510.0,115500.0,0.04422381]
[1760306975468,0.34,115470.0,115460.0,0.10829896]
[1760306975672,0.17322016,115460.0,115450.0,0.00046991]
[1760306975869,0.20905016,115460.0,115450.0,0.00046991]
[1760306976082,0.32389016,115460.0,115450.0,0.00046991]
[1760306976285,1.62048016,115460.0,115450.0,0.00046991]
[1760306976733,1.62048016,115460.0,115450.0,0.00061807]
[1760306977646,0.66389016,115460.0,115450.0,0.00061807]
[1760306979300,0.34,115410.0,115400.0,0.15029896]
[1760306979504,0.5132952,115410.0,115400.0,0.17569295]
[1760306979692,0.5491252,115410.0,115400.0,0.09754589]
[1760306980090,0.5491252,115410.0,115400.0,0.04249399]
[1760306980091,0.5954952,115410.0,115400.0,0.04249399]
[1760306980330,0.6639652,115410.0,115400.0,0.04249399]
[1760306980898,0.5491252,115410.0,115400.0,0.06739399]
[1760306981179,1.6205552,115410.0,115400.0,0.04249399]
[1760306981729,0.5954952,115410.0,115400.0,0.04249399]
[1760306982135,0.6639652,115410.0,115400.0,0.04249399]
[1760306982547,1.96991524,115390.0,115380.0,0.03]
[1760306982878,1.96991524,115390.0,115380.0,0.04174815]
[1760306982879,1.62058524,115390.0,115380.0,0.04174815]
[1760306983046,1.69681139,115390.0,115380.0,0.04174815]
[1760306983247,1.68058524,115390.0,115380.0,0.04174815]
[1760306984225,0.72399524,115390.0,115380.0,0.04174815]
[1760306984602,1.76930458,115390.0,115380.0,0.04174815]
[1760306984801,1.77030458,115390.0,115380.0,0.04174815]
[1760306985009,0.72499524,115390.0,115380.0,0.04174815]
[1760306985212,1.68158524,115390.0,115380.0,0.04174815]
[1760306985763,1.68258524,115390.0,115380.0,0.04174815]
[1760306986589,0.1442,115390.0,115380.0,0.04174815]
[1760306986793,0.002,115390.0,115380.0,0.40390126]
[1760306986995,0.002,115390.0,115380.0,0.40738332]
[1760306987780,0.002,115390.0,115380.0,0.33330332]
[1760306988201,0.002,115390.0,115380.0,0.49145284]
[1760306988402,0.27723869,115440.0,115420.0,0.20343209]
[1760306988629,0.27723869,115440.0,115420.0,0.20343174]
[1760306988839,0.3397,115430.0,115420.0,0.23794174]
[1760306989000,0.3397,115430.0,115420.0,0.20343174]
[1760306989001,0.38679,115430.0,115420.0,0.20343174]
[1760306989210,0.17331394,115400.0,115380.0,0.21497974]
[1760306989465,0.207861,115400.0,115380.0,0.24948974]
[1760306989591,0.207861,115400.0,115380.0,0.07629815]
[1760306989806,0.17332524,115390.0,115380.0,0.10645005]
[1760306990012,0.17332524,115390.0,115380.0,0.15150005]
[1760306990225,0.21952524,115390.0,115380.0,0.04178815]
[1760306990436,1.28389524,115390.0,115380.0,0.04178815]
[1760306990828,1.28389524,115390.0,115370.0,0.0004]
[1760306990829,0.51334026,115380.0,115370.0,0.0004]
[1760306991100,0.75770026,115380.0,115370.0,0.04204]
[1760306991260,0.51340038,115340.0,115330.0,0.0304]
[1760306991432,0.54833038,115340.0,115330.0,0.07218845]
[1760306991855,0.54881529,115370.0,115340.0,0.17339935]
[1760306992068,0.17337031,115360.0,115350.0,0.23804724]
[1760306992267,0.34,115370.0,115360.0,0.35337221]
[1760306992788,1.62210529,115370.0,115340.0,0.03451]
[1760306992946,0.51337031,115360.0,115340.0,0.20790988]
[1760306993149,0.17338534,115350.0,115340.0,0.03451]
[1760306993573,0.34,115340.0,115330.0,0.2887828]
[1760306993878,0.38435,115340.0,115330.0,0.10669845]
[1760306994037,0.54886038,115340.0,115330.0,0.07218845]
[1760306994249,0.54886038,115340.0,115330.0,0.0816318]
[1760306994442,0.34,115340.0,115330.0,0.41780217]
[1760306994642,0.34,115340.0,115330.0,0.43504911]
[1760306994844,0.06,115360.0,115330.0,0.44371988]
[1760306995010,0.03546,115370.0,115360.0,0.0301519]
[1760306995011,0.51335529,115370.0,115360.0,0.0301519]
[1760306995667,0.51335529,115370.0,115360.0,0.20352221]
[1760306995875,0.51335529,115370.0,115360.0,0.0301519]
[1760306996082,0.51335529,115370.0,115360.0,0.20352221]
[1760306996504,0.51435529,115370.0,115360.0,0.20352221]
[1760306996755,0.002,115370.0,115360.0,0.35337221]
[1760306996950,0.002,115370.0,115360.0,0.44290173]
[1760306997604,0.002,115370.0,115360.0,1.10266612]
[1760306998056,0.002,115370.0,115360.0,0.44290173]
[1760306999906,0.001,115370.0,115360.0,1.10266612]
[1760307000112,0.34,115390.0,115380.0,0.17334026]